bitfinex-derivatives/quotes_BTCF0:USTF0_20250119
["timestamp","ask_amount","ask_price","bid_price","bid_amount"]
[1737270266796,0.047533,105310.0,105300.0,0.56423897]
[1737270268800,0.11478076,105310.0,105300.0,0.58801446]
[1737270270598,0.11478076,105310.0,105300.0,0.56423897]
[1737270270995,0.047533,105310.0,105300.0,0.63148673]
[1737270271405,0.22798827,105310.0,105300.0,0.53423897]
[1737270272103,0.22798827,105310.0,105300.0,0.52469982]
[1737270272504,0.16074051,105310.0,105300.0,0.52469982]
[1737270272703,0.18904239,105310.0,105300.0,0.52469982]
[1737270273003,0.16981127,105320.0,105300.0,0.96463573]
[1737270273203,0.16981127,105320.0,105310.0,0.47558076]
[1737270273399,0.16981127,105320.0,105310.0,0.43924021]
[1737270273603,0.16981127,105320.0,105310.0,0.45409921]
[1737270274197,0.21734027,105320.0,105310.0,0.45409921]
[1737270275691,0.21734027,105320.0,105310.0,0.52134697]
[1737270276195,0.21734027,105320.0,105310.0,0.45409921]
[1737270276392,0.21734027,105320.0,105310.0,0.48419921]
[1737270276798,0.21734427,105320.0,105310.0,0.12339921]
[1737270277009,0.21734427,105320.0,105310.0,0.12709921]
[1737270277808,0.23191427,105320.0,105310.0,0.12709921]
[1737270278306,0.23191427,105320.0,105310.0,0.12740162]
[1737270278506,0.23191427,105320.0,105310.0,0.12740054]
[1737270279906,0.23191427,105320.0,105310.0,0.1946483]
[1737270280106,0.23191427,105320.0,105310.0,0.12740054]
[1737270280315,0.23191427,105320.0,105310.0,0.09649441]
[1737270280499,0.23191427,105320.0,105310.0,0.12740051]
[1737270281506,0.59271427,105320.0,105310.0,0.10838137]
[1737270282701,0.422903,105320.0,105310.0,0.10838137]
[1737270283702,0.062103,105320.0,105310.0,0.12740112]
[1737270284105,0.062103,105320.0,105310.0,0.12740082]
[1737270284299,0.062103,105320.0,105310.0,0.10838149]
[1737270284706,0.062103,105320.0,105310.0,0.11780591]
[1737270284906,0.422903,105320.0,105310.0,0.11780591]
[1737270285311,0.59354364,105320.0,105310.0,0.11780591]
[1737270286009,0.59354364,105320.0,105310.0,0.11780633]
[1737270288709,0.6607914,105320.0,105310.0,0.11780633]
[1737270290113,0.6607914,105320.0,105310.0,0.07027333]
[1737270291407,0.49015076,105320.0,105310.0,0.06084892]
[1737270294714,0.062103,105320.0,105310.0,0.10838764]
[1737270295012,0.21268315,105320.0,105310.0,0.10838764]
[1737270295320,0.21268315,105320.0,105310.0,0.1946548]
[1737270295516,0.21268315,105320.0,105310.0,0.19465337]
[1737270296116,0.01457,105320.0,105310.0,0.19465337]
[1737270297220,0.01457,105320.0,105310.0,0.12740561]
[1737270297517,0.23304162,105320.0,105310.0,0.12740559]
[1737270298214,0.23304162,105320.0,105310.0,0.1083864]
[1737270299221,0.23304162,105320.0,105310.0,0.10838641]
[1737270301423,0.18550762,105320.0,105310.0,0.53643417]
[1737270301609,0.18550762,105320.0,105310.0,0.55545329]
[1737270301814,0.18550762,105320.0,105310.0,0.54059429]
[1737270302219,0.18550762,105320.0,105310.0,0.17979429]
[1737270302523,0.18550762,105320.0,105310.0,0.16077517]
[1737270302830,0.18550762,105320.0,105310.0,0.17563411]
[1737270303616,0.18550762,105320.0,105310.0,0.19465356]
[1737270303826,0.18550762,105320.0,105310.0,0.1274058]
[1737270305827,0.01457,105320.0,105310.0,0.1274058]
[1737270306025,0.01457,105320.0,105310.0,0.12740608]
[1737270306920,0.01457,105320.0,105310.0,0.10838655]
[1737270307424,0.062104,105320.0,105310.0,0.10838655]
[1737270308322,0.59384162,105320.0,105310.0,0.10838655]
[1737270310134,0.23304162,105320.0,105310.0,0.10838655]
[1737270311530,0.59384162,105320.0,105310.0,0.10838655]
[1737270312326,0.23304162,105320.0,105310.0,0.10838655]
[1737270312530,0.59384162,105320.0,105310.0,0.10838655]
[1737270312726,0.66108938,105320.0,105310.0,0.10838655]
[1737270313123,0.59384162,105320.0,105310.0,0.10838655]
[1737270313527,0.59384162,105320.0,105310.0,0.1083872]
[1737270314024,0.49015176,105320.0,105310.0,0.0608492]
[1737270314625,0.49015176,105320.0,105310.0,0.04896135]
[1737270314931,0.49015176,105320.0,105310.0,0.03410241]
[1737270315433,0.49015176,105320.0,105310.0,0.00400241]
[1737270315833,0.52045176,105320.0,105310.0,0.01886313]
[1737270316737,0.52045176,105320.0,105310.0,0.00400241]
[1737270319631,0.71856491,105320.0,105310.0,0.00400241]
[1737270321344,0.71856491,105320.0,105310.0,0.00060099]
[1737270324430,0.72816042,105320.0,105310.0,0.00060099]
[1737270324838,0.72816042,105320.0,105310.0,0.00080099]
[1737270325833,0.53004727,105320.0,105310.0,0.00080099]
[1737270330441,0.72816042,105320.0,105310.0,0.00080099]
[1737270331341,0.36736042,105320.0,105310.0,0.00080099]
[1737270331542,1.08896042,105320.0,105310.0,0.00080099]
[1737270332952,1.15620818,105320.0,105300.0,0.13410482]
[1737270333246,0.50679076,105310.0,105300.0,0.13410482]
[1737270334646,0.52189076,105310.0,105300.0,0.13410482]
[1737270338739,0.423443,105310.0,105300.0,0.13410482]
[1737270338939,0.423443,105310.0,105300.0,0.18165282]
[1737270339447,0.62155615,105310.0,105300.0,0.18165282]
[1737270342247,0.68880391,105310.0,105300.0,0.18165282]
[1737270342454,0.49069076,105310.0,105300.0,0.18165282]
[1737270343552,0.423443,105310.0,105300.0,0.18165282]
[1737270343946,0.784243,105310.0,105300.0,0.18165282]
[1737270347453,0.784243,105310.0,105300.0,0.13410482]
[1737270348053,0.85149076,105310.0,105300.0,0.13410482]
[1737270350159,1.04960391,105310.0,105300.0,0.13410482]
[1737270351358,1.03216288,105310.0,105300.0,0.13410482]
[1737270352359,0.31056288,105310.0,105300.0,0.13410482]
[1737270352657,1.03216288,105310.0,105300.0,0.13410482]
[1737270361063,1.30838464,105310.0,105300.0,0.1326804]
[1737270361258,1.30838464,105310.0,105290.0,0.07328783]
[1737270361259,0.047551,105300.0,105290.0,0.07328783]
[1737270361566,0.45815773,105300.0,105290.0,0.07328783]
[1737270362156,0.45825054,105300.0,105290.0,0.07328783]
[1737270362763,0.47361054,105300.0,105290.0,0.07328783]
[1737270363370,0.47361054,105300.0,105290.0,0.12309456]
[1737270363864,0.47361054,105300.0,105290.0,0.07328783]
[1737270364569,0.62191696,105300.0,105290.0,0.20314956]
[1737270364760,0.67172369,105300.0,105290.0,0.20314956]
[1737270364959,0.67172369,105300.0,105290.0,0.21801343]
[1737270365461,0.67172369,105300.0,105290.0,0.1682067]
[1737270365664,0.47361054,105300.0,105290.0,0.1682067]
[1737270365868,0.52341727,105300.0,105290.0,0.1682067]
[1737270366063,0.52341727,105300.0,105290.0,0.10578783]
[1737270367568,0.52341727,105300.0,105290.0,0.00958783]
[1737270367869,0.047557,105290.0,105280.0,0.21806434]
[1737270368168,0.45816373,105290.0,105280.0,0.09809959]
[1737270368370,0.45816373,105290.0,105280.0,0.08620742]
[1737270368761,0.50797046,105290.0,105280.0,0.03864942]
[1737270368963,0.50797046,105290.0,105280.0,0.03042142]
[1737270368964,0.60057046,105290.0,105280.0,0.03042142]
[1737270369867,0.60057046,105290.0,105270.0,0.17050634]
[1737270369868,0.047561,105280.0,105270.0,0.17050634]
[1737270370060,0.50797446,105280.0,105270.0,0.17050634]
[1737270370968,0.047569,105270.0,105250.0,0.15357208]
[1737270371163,0.77148548,105260.0,105250.0,0.15357208]
[1737270371963,0.81905548,105260.0,105250.0,0.15357208]
[1737270372167,0.98985019,105260.0,105250.0,0.10599908]
[1737270372369,0.98985019,105260.0,105240.0,0.047578]
[1737270372570,0.45817873,105250.0,105230.0,0.31197436]
[1737270372766,0.41060673,105240.0,105230.0,0.31197436]
[1737270373169,0.41060673,105240.0,105230.0,0.36178109]
[1737270373377,0.3608,105240.0,105230.0,0.31197436]
[1737270373676,0.47450916,105240.0,105230.0,0.15110738]
[1737270374067,0.47450916,105240.0,105230.0,0.1749009]
[1737270374671,0.47450916,105240.0,105230.0,0.15110738]
[1737270374870,0.47450916,105240.0,105230.0,0.21864469]
[1737270375675,0.47450916,105240.0,105230.0,0.24243773]
[1737270375977,0.49003916,105240.0,105230.0,0.24243773]
[1737270376279,0.01553,105240.0,105230.0,0.24243773]
[1737270376479,0.47450916,105250.0,105240.0,0.047579]
[1737270377177,0.49825916,105250.0,105240.0,0.047579]
[1737270377894,0.38455,105250.0,105240.0,0.047579]
[1737270380982,0.38455,105250.0,105240.0,0.12998595]
[1737270384181,0.02375,105250.0,105240.0,0.12998595]
[1737270384584,0.03135,105250.0,105240.0,0.12998595]
[1737270385680,0.03135,105250.0,105240.0,0.5702182]
[1737270385880,0.47438834,105260.0,105250.0,0.047577]
[1737270386183,0.47438834,105260.0,105250.0,0.21001431]
[1737270386682,0.47438834,105260.0,105250.0,0.22488395]
[1737270387084,0.48198834,105260.0,105250.0,0.22488395]
[1737270387284,0.48198834,105260.0,105250.0,0.21001431]
[1737270388080,0.48198834,105260.0,105250.0,0.22488238]
[1737270388989,0.12118834,105260.0,105250.0,0.22488238]
[1737270389189,0.50268699,105270.0,105250.0,0.23677652]
[1737270389386,0.50268699,105270.0,105260.0,0.11510731]
[1737270389688,0.55944179,105300.0,105290.0,0.047556]
[1737270389886,0.60699379,105300.0,105290.0,0.047556]
[1737270390089,0.55944179,105300.0,105290.0,0.047556]
[1737270390282,0.55944179,105300.0,105290.0,0.11509331]
[1737270390484,0.59077179,105300.0,105290.0,0.11509331]
[1737270390883,0.39213,105300.0,105290.0,0.11509331]
[1737270392897,0.39213,105300.0,105290.0,0.15169331]
[1737270399000,0.39213,105300.0,105290.0,0.11509331]
[1737270400200,0.39213,105300.0,105290.0,0.12474508]
[1737270405499,0.39213,105300.0,105290.0,0.16154508]
[1737270412207,0.39213,105300.0,105290.0,0.09400777]
[1737270412407,0.39213,105300.0,105290.0,0.16154508]
[1737270413409,0.39213,105300.0,105290.0,0.17343463]
[1737270413609,0.39213,105300.0,105290.0,0.16154508]
[1737270414309,0.39213,105300.0,105290.0,0.17343468]
[1737270415109,0.39213,105300.0,105290.0,0.68443468]
[1737270416305,0.39213,105300.0,105290.0,0.85426331]
[1737270417409,0.39213,105300.0,105290.0,0.83651536]
[1737270418209,0.39213,105300.0,105290.0,0.85553872]
[1737270419305,0.39213,105300.0,105290.0,0.93102467]
[1737270419507,0.39213,105300.0,105290.0,0.96193763]
[1737270420421,0.53461935,105300.0,105290.0,0.82555891]
[1737270420713,0.53461935,105300.0,105290.0,0.87118773]
[1737270420908,0.60721935,105300.0,105290.0,0.87118773]
[1737270421212,0.60721935,105300.0,105290.0,0.87118851]
[1737270421899,0.63492837,105300.0,105290.0,0.81513251]
[1737270422502,0.63492837,105300.0,105290.0,0.81513268]
[1737270425909,0.63492837,105300.0,105290.0,0.6447505]
[1737270426310,0.63492837,105300.0,105290.0,0.64475058]
[1737270427210,0.63492837,105300.0,105290.0,0.81513276]
[1737270427503,0.73226873,105300.0,105290.0,0.7653434]
[1737270427709,0.73226873,105300.0,105290.0,0.75345277]
[1737270427912,0.73226873,105300.0,105290.0,0.80324213]
[1737270428407,0.56207036,105300.0,105290.0,0.63285995]
[1737270428607,0.512281,105300.0,105290.0,0.63285995]
[1737270430713,0.68324208,105300.0,105290.0,0.63285995]
[1737270431014,0.73303144,105300.0,105290.0,0.63285995]
[1737270431319,0.68324208,105300.0,105290.0,0.63285995]
[1737270433117,0.56309108,105300.0,105290.0,0.63285995]
[1737270433409,0.56309108,105300.0,105290.0,0.76874014]
[1737270433609,0.56309108,105300.0,105290.0,0.71895078]
[1737270433815,0.17096108,105300.0,105290.0,0.71895078]
[1737270434411,0.17096108,105300.0,105290.0,0.70408796]
[1737270434815,0.14241269,105300.0,105290.0,0.87447014]
[1737270435003,0.14623269,105300.0,105290.0,0.87447014]
[1737270435206,0.14623269,105300.0,105290.0,0.83737014]
[1737270435406,0.14623269,105300.0,105290.0,0.852233]
[1737270437516,0.50703269,105300.0,105290.0,0.84034217]
[1737270438216,0.58313208,105300.0,105290.0,0.63285999]
[1737270438415,0.67012144,105300.0,105290.0,0.63285999]
[1737270438612,0.65903208,105300.0,105290.0,0.12185999]
[1737270440308,0.65903208,105300.0,105290.0,0.06241886]
[1737270440503,0.65903208,105300.0,105290.0,0.11220822]
[1737270440710,0.70882144,105300.0,105290.0,0.01486286]
[1737270441015,0.047556,105290.0,105280.0,0.26773054]
[1737270441209,0.408356,105290.0,105280.0,0.29448689]
[1737270442117,0.55080554,105290.0,105280.0,0.29448689]
[1737270443320,0.72176662,105290.0,105280.0,0.1241048]
[1737270444410,0.72176662,105290.0,105280.0,0.13374073]
[1737270444907,0.55080554,105290.0,105280.0,0.30412291]
[1737270446617,0.72176662,105290.0,105280.0,0.30412291]
[1737270447616,0.72176662,105290.0,105280.0,0.13374073]
[1737270447914,0.67421062,105290.0,105280.0,0.13374073]
[1737270448121,0.67421062,105290.0,105280.0,0.17064073]
[1737270448717,0.52464954,105290.0,105280.0,0.34102291]
[1737270448933,0.52464954,105290.0,105280.0,0.34102285]
[1737270449619,0.52464954,105290.0,105280.0,0.34102276]
[1737270450918,0.52464954,105290.0,105280.0,0.34102278]
[1737270452123,0.74316662,105290.0,105280.0,0.34102278]
[1737270454319,0.60071708,105290.0,105280.0,0.34102278]
[1737270456434,0.60071708,105290.0,105280.0,0.34102293]
[1737270458129,0.60451708,105290.0,105280.0,0.34102293]
[1737270458537,0.60451708,105290.0,105280.0,0.304123]
[1737270459033,0.65430644,105290.0,105280.0,0.304123]
[1737270459232,0.55696108,105290.0,105280.0,0.304123]
[1737270459624,0.55696108,105290.0,105280.0,0.339023]
[1737270459834,0.19616108,105290.0,105280.0,0.3580494]
[1737270460336,0.19616108,105290.0,105280.0,0.35804854]
[1737270460732,0.1676944,105290.0,105280.0,0.58448672]
[1737270460923,0.5284944,105290.0,105280.0,0.58448672]
[1737270461929,0.5284944,105290.0,105280.0,0.56546059]
[1737270462134,0.5760504,105290.0,105280.0,0.56546059]
[1737270462434,0.5760504,105290.0,105280.0,0.51567123]
[1737270462633,0.5760504,105290.0,105280.0,0.33902241]
[1737270464442,0.60451708,105290.0,105280.0,0.33902241]
[1737270467643,0.24371708,105290.0,105280.0,0.33902241]
[1737270467843,0.60451708,105290.0,105280.0,0.33902241]
[1737270468941,0.60451708,105290.0,105280.0,0.28923305]
[1737270469142,0.60451708,105290.0,105280.0,0.33902241]
[1737270471439,0.19616108,105290.0,105280.0,0.33902241]
[1737270471740,0.19616108,105290.0,105280.0,0.71884929]
[1737270471949,0.47320998,105310.0,105300.0,0.047551]
[1737270472145,0.47320998,105310.0,105300.0,0.09734036]
[1737270472543,0.047549,105310.0,105300.0,0.15902007]
[1737270472848,0.047549,105310.0,105300.0,0.18282972]
[1737270473141,0.67688579,105320.0,105310.0,0.047547]
[1737270473345,0.60698579,105320.0,105310.0,0.11496812]
[1737270473543,0.55944179,105320.0,105310.0,0.18896812]
[1737270473848,0.19864179,105320.0,105310.0,0.56165752]
[1737270474938,0.24618379,105320.0,105310.0,0.56165752]
[1737270475149,0.19000984,105320.0,105310.0,0.7320397]
[1737270475341,0.19000984,105320.0,105310.0,0.7201503]
[1737270475540,0.19000984,105320.0,105310.0,0.73203891]
[1737270476445,0.19000984,105320.0,105310.0,0.54976812]
[1737270477151,0.19000984,105320.0,105310.0,0.56165673]
[1737270477354,0.55080984,105320.0,105310.0,0.074]
[1737270477645,0.047547,105310.0,105300.0,0.6818533]
[1737270477953,0.047547,105310.0,105300.0,0.70330587]
[1737270479041,0.19001484,105310.0,105300.0,0.53292392]
[1737270480242,0.19001484,105310.0,105300.0,0.4734843]
[1737270480447,0.19001484,105310.0,105300.0,0.09281418]
[1737270480659,0.19001484,105310.0,105300.0,0.05711418]
[1737270480952,0.19001484,105310.0,105300.0,0.00956318]
[1737270481150,0.14246784,105310.0,105290.0,0.7209583]
[1737270481342,0.047551,105300.0,105290.0,0.3601583]
[1737270482247,0.047551,105300.0,105290.0,0.7209583]
[1737270483244,0.19001884,105300.0,105290.0,0.55057612]
[1737270483561,0.19001884,105300.0,105290.0,0.57188729]
[1737270483852,0.19001884,105300.0,105290.0,0.55999651]
[1737270484754,0.19001884,105300.0,105290.0,0.57188731]
[1737270486658,0.19001884,105300.0,105290.0,0.57188696]
[1737270487248,0.14246784,105300.0,105290.0,0.57188696]
[1737270487653,0.14246784,105300.0,105290.0,0.610531]
[1737270489353,0.14246784,105300.0,105290.0,0.58675005]
[1737270489759,0.14246784,105300.0,105290.0,0.58674976]
[1737270492956,0.19001884,105300.0,105290.0,0.22594976]
[1737270493153,0.19001884,105300.0,105290.0,0.15852864]
[1737270493447,0.19001884,105300.0,105290.0,0.5748596]
[1737270494263,0.19001884,105300.0,105290.0,0.15852951]
[1737270494655,0.61823996,105300.0,105290.0,0.01486309]
[1737270494856,0.69443996,105300.0,105290.0,0.01486309]
[1737270495051,0.69443996,105300.0,105280.0,0.25384218]
[1737270495052,0.74199596,105300.0,105280.0,0.25384218]
[1737270495259,0.047556,105290.0,105280.0,0.26573451]
[1737270495464,0.047556,105290.0,105280.0,0.28059993]
[1737270495666,0.047556,105290.0,105280.0,0.17763887]
[1737270497164,0.1898749,105290.0,105280.0,0.16574654]
[1737270497364,0.1898749,105290.0,105280.0,0.17510137]
[1737270498469,0.1898749,105290.0,105280.0,0.07178025]
[1737270499763,0.2256749,105290.0,105280.0,0.07178025]
[1737270500272,0.2256749,105290.0,105280.0,0.13920137]
[1737270500453,0.1423189,105290.0,105280.0,0.56742249]
[1737270500765,0.1423189,105290.0,105280.0,0.57931491]
[1737270500957,0.1423189,105290.0,105280.0,0.59833864]
[1737270501156,0.17071703,105290.0,105280.0,0.59833733]
[1737270501363,0.19864179,105310.0,105300.0,0.047551]
[1737270501557,0.19864179,105310.0,105300.0,0.11497212]
[1737270502068,0.04623348,105310.0,105300.0,0.12983754]
[1737270503079,0.04623348,105310.0,105300.0,0.50252751]
[1737270503669,0.14229073,105310.0,105300.0,0.50252751]
[1737270504461,0.14229073,105310.0,105300.0,0.61212751]
[1737270504656,0.14229073,105310.0,105300.0,0.60023754]
[1737270504872,0.14229073,105310.0,105300.0,0.61212705]
[1737270506174,0.14229073,105310.0,105300.0,0.78250923]
[1737270506760,0.047545,105320.0,105310.0,0.047547]
[1737270507069,0.047545,105320.0,105310.0,0.11496812]
[1737270508068,0.047545,105320.0,105310.0,0.12982921]
[1737270508567,0.047545,105320.0,105310.0,0.49062921]
[1737270508966,0.047545,105320.0,105310.0,0.50251787]
[1737270509167,0.047545,105320.0,105310.0,0.48765678]
[1737270510376,0.047545,105320.0,105310.0,0.47576812]
[1737270513267,0.1094,105330.0,105310.0,0.47576812]
[1737270513467,0.156939,105330.0,105310.0,0.47576812]
[1737270515275,0.156939,105330.0,105320.0,0.06742112]
[1737270516364,0.55944179,105340.0,105320.0,0.54318424]
[1737270516571,0.19864179,105340.0,105330.0,0.47575912]
[1737270516781,0.19864179,105340.0,105330.0,0.58625912]
[1737270517075,0.1105,105350.0,105340.0,0.047533]
[1737270517274,0.1105,105350.0,105340.0,0.11495412]
[1737270520380,0.158031,105350.0,105340.0,0.11495412]
[1737270523871,0.158031,105350.0,105340.0,0.12436756]
[1737270526178,0.1105,105350.0,105340.0,0.12436756]
[1737270526483,0.53109311,105360.0,105350.0,0.04753]
[1737270526786,0.53109311,105360.0,105350.0,0.11495112]
[1737270527175,0.566848,105370.0,105350.0,0.42822112]
[1737270527176,0.68961611,105370.0,105350.0,0.42822112]
[1737270527375,0.68961611,105370.0,105360.0,0.11494712]
[1737270527685,0.53109311,105370.0,105360.0,0.11494712]
[1737270527884,0.17029311,105370.0,105360.0,0.47574712]
[1737270528676,0.05718792,105380.0,105370.0,0.047521]
[1737270528875,0.05718792,105380.0,105370.0,0.11494212]
[1737270533083,0.00967092,105380.0,105370.0,0.11494212]
[1737270533285,0.520115,105390.0,105370.0,0.12448814]
[1737270533583,0.520115,105390.0,105380.0,0.06742112]
[1737270533790,0.52970688,105390.0,105380.0,0.11493812]
[1737270534385,0.52970688,105390.0,105380.0,0.06742112]
[1737270534682,0.047517,105380.0,105370.0,0.12448814]
[1737270534881,0.047517,105380.0,105370.0,0.047521]
[1737270535080,0.408317,105380.0,105370.0,0.047521]
[1737270535588,0.408317,105380.0,105370.0,0.11494212]
[1737270537673,0.408317,105380.0,105370.0,0.06742112]
[1737270537884,0.408317,105380.0,105360.0,0.42822112]
[1737270538081,0.408317,105380.0,105370.0,0.11494312]
[1737270542186,0.047517,105380.0,105370.0,0.11494312]
[1737270542574,0.408317,105380.0,105370.0,0.11494312]
[1737270542981,0.047517,105380.0,105370.0,0.11494312]
[1737270543481,0.18919629,105380.0,105370.0,0.11494312]
[1737270543985,0.54999629,105380.0,105370.0,0.11494312]
[1737270548485,0.61741741,105380.0,105360.0,0.37030302]
[1737270548686,0.59214212,105370.0,105350.0,0.16992471]
[1737270548884,0.408326,105360.0,105350.0,0.18180896]
[1737270549188,0.408326,105360.0,105350.0,0.16992471]
[1737270549783,0.55000529,105360.0,105340.0,0.47575512]
[1737270549990,0.08553,105350.0,105340.0,0.4876405]
[1737270551193,0.08553,105350.0,105340.0,0.38238951]
[1737270551493,0.12323,105350.0,105340.0,0.42992451]
[1737270551797,0.26490929,105350.0,105340.0,0.42992451]
[1737270553587,0.26490929,105350.0,105340.0,0.49734565]
[1737270554590,0.12323,105350.0,105340.0,0.49734565]
[1737270555089,0.12323,105350.0,105340.0,0.49734485]
[1737270555789,0.04753,105350.0,105340.0,0.49734485]
[1737270556392,0.22870529,105360.0,105350.0,0.047529]
[1737270556695,0.22870529,105360.0,105350.0,0.48763474]
[1737270558699,0.22870529,105360.0,105350.0,0.47575012]
[1737270558895,0.22870529,105360.0,105350.0,0.48763461]
[1737270559101,0.22870529,105360.0,105350.0,0.47575012]
[1737270560903,0.22870529,105360.0,105350.0,0.408329]
[1737270563899,0.22870529,105360.0,105350.0,0.47575012]
[1737270564504,0.22870529,105360.0,105350.0,0.11495012]
[1737270564704,0.22870529,105360.0,105350.0,0.47575012]
[1737270564904,0.22870529,105360.0,105350.0,0.408329]
[1737270565602,0.14167929,105360.0,105350.0,0.4876346]
[1737270565806,0.14167929,105360.0,105350.0,0.5669346]
[1737270566200,0.14167929,105360.0,105350.0,0.58594824]
[1737270566408,0.14167929,105360.0,105350.0,0.58594703]
[1737270567107,0.22870029,105370.0,105350.0,0.75587174]
[1737270567309,0.22870029,105370.0,105360.0,0.47574612]
[1737270567508,0.22870029,105370.0,105360.0,0.48762955]
[1737270568007,0.14167929,105370.0,105360.0,0.55505028]
[1737270568209,0.14167929,105370.0,105360.0,0.52472916]
[1737270570114,0.14167929,105370.0,105360.0,0.5247285]
[1737270570508,0.23620001,105380.0,105370.0,0.04752]
[1737270570708,0.23620001,105380.0,105370.0,0.11494112]
[1737270573215,0.59700001,105380.0,105370.0,0.11494112]
[1737270573413,0.23620001,105380.0,105370.0,0.11494112]
[1737270575925,0.23620001,105380.0,105370.0,0.12469426]
[1737270577121,0.40649312,105380.0,105370.0,0.12469426]
[1737270578323,0.23620001,105380.0,105370.0,0.12469426]
[1737270579026,0.59700001,105380.0,105370.0,0.05727314]
[1737270579223,0.15128301,105380.0,105370.0,0.49737632]
[1737270579424,0.15128301,105380.0,105370.0,0.60627632]
[1737270579628,0.15128301,105380.0,105370.0,0.62528592]
[1737270579821,0.32157612,105380.0,105370.0,0.62528592]
[1737270580127,0.36909212,105380.0,105370.0,0.4299552]
[1737270580428,0.4740884,105380.0,105370.0,0.48549426]
[1737270580926,0.30379529,105380.0,105370.0,0.48549426]
[1737270582032,0.30379529,105380.0,105360.0,0.3608]
[1737270582033,0.61707929,105380.0,105360.0,0.408324]
[1737270582323,0.047521,105370.0,105350.0,1.38292011]
[1737270582530,0.047521,105370.0,105350.0,1.39480367]
[1737270582723,0.3608,105370.0,105350.0,1.03400367]
[1737270583032,0.047525,105360.0,105350.0,0.98647567]
[1737270583223,0.157825,105360.0,105350.0,0.51068]
[1737270583926,0.157825,105360.0,105350.0,0.57810112]
[1737270584334,0.047525,105360.0,105350.0,1.00771762]
[1737270584733,0.3594944,105370.0,105350.0,1.00771762]
[1737270584929,0.57861511,105370.0,105360.0,0.06742112]
[1737270587831,0.57861511,105370.0,105360.0,0.11494612]
[1737270592934,0.57861511,105370.0,105360.0,0.047525]
[1737270596839,0.21781511,105370.0,105360.0,0.047525]
[1737270597141,0.57861511,105370.0,105360.0,0.047525]
[1737270601447,0.57861511,105370.0,105360.0,0.09726985]
[1737270602636,0.21781511,105370.0,105360.0,0.09726985]
[1737270602837,0.57861511,105370.0,105360.0,0.09726985]
[1737270607046,0.408322,105370.0,105360.0,0.09726985]
[1737270611440,0.17094563,105370.0,105360.0,0.5078147]
[1737270611645,0.17094563,105370.0,105360.0,0.55809857]
[1737270611840,0.17094563,105370.0,105360.0,0.19729857]
[1737270612151,0.21715278,105370.0,105360.0,0.38623619]
[1737270612346,0.21715278,105370.0,105360.0,0.36722328]
[1737270612746,0.21715278,105370.0,105360.0,0.38623625]
[1737270613144,0.21715278,105370.0,105360.0,0.31747843]
[1737270613344,0.21715278,105370.0,105360.0,0.31747814]
[1737270613948,0.26467478,105370.0,105360.0,0.31747814]
[1737270614653,0.21846763,105370.0,105360.0,0.31747814]
[1737270614847,0.21846763,105370.0,105360.0,0.18180829]
[1737270615047,0.21846763,105370.0,105360.0,0.27907914]
[1737270615544,0.57926763,105370.0,105360.0,0.26719556]
[1737270615744,0.408322,105370.0,105360.0,0.09727085]
[1737270615944,0.41054485,105370.0,105350.0,0.99137322]
[1737270616257,0.41054485,105370.0,105350.0,1.01308424]
[1737270616556,0.45806885,105370.0,105350.0,1.01308458]
[1737270617156,0.21722367,105360.0,105350.0,0.7865183]
[1737270617358,0.21722367,105360.0,105350.0,0.83626315]
[1737270618258,0.26474967,105360.0,105350.0,0.7018913]
[1737270618459,0.75289452,105360.0,105350.0,0.6924894]
[1737270618753,0.75289452,105360.0,105340.0,0.22656628]
[1737270618754,0.79389452,105360.0,105340.0,0.22656628]
[1737270618945,0.45807585,105350.0,105340.0,0.23845235]
[1737270619154,0.45807585,105350.0,105340.0,0.27631113]
[1737270619349,0.45807585,105350.0,105340.0,0.17038472]
[1737270621054,0.047535,105340.0,105330.0,0.05116875]
[1737270621258,0.485935,105340.0,105330.0,0.06305589]
[1737270621464,0.485935,105340.0,105330.0,0.0014239]
[1737270622058,0.522935,105340.0,105330.0,0.11638299]
[1737270622261,0.69371783,105340.0,105330.0,0.11638299]
[1737270623061,0.33291783,105340.0,105330.0,0.12826992]
[1737270623261,0.162135,105340.0,105330.0,0.12826992]
[1737270624563,0.162135,105340.0,105330.0,0.12826987]
[1737270624564,0.26736564,105340.0,105330.0,0.12826987]
[1737270625759,0.26736564,105340.0,105330.0,0.47718299]
[1737270626063,0.26736564,105340.0,105330.0,0.11638299]
[1737270626364,0.18976564,105340.0,105330.0,0.47718299]
[1737270626565,0.18976564,105340.0,105330.0,0.51688299]
[1737270626757,0.14223064,105340.0,105330.0,0.55708299]
[1737270627757,0.14223064,105340.0,105330.0,0.56896946]
[1737270628065,0.18976664,105340.0,105330.0,0.56896946]
[1737270628466,0.18976664,105340.0,105330.0,0.55708299]
[1737270628765,0.18976664,105340.0,105330.0,0.56896945]
[1737270629458,0.18976664,105340.0,105330.0,0.0014239]
[1737270629659,0.66606664,105340.0,105330.0,0.0014239]
[1737270630364,0.73348573,105340.0,105330.0,0.0014239]
[1737270630661,0.78102873,105340.0,105310.0,0.30349739]
[1737270630856,0.408349,105320.0,105310.0,0.2360783]
[1737270631053,0.408349,105320.0,105310.0,0.30349739]
[1737270631662,0.408349,105320.0,105310.0,0.07693111]
[1737270631663,0.55057964,105320.0,105310.0,0.07693111]
[1737270632668,0.55057964,105320.0,105310.0,0.12448411]
[1737270633667,0.55057964,105320.0,105310.0,0.11497209]
[1737270634064,0.55057964,105320.0,105310.0,0.06741909]
[1737270634365,0.55057964,105320.0,105310.0,0.11497109]
[1737270634560,0.59007964,105320.0,105310.0,0.11497109]
[1737270635061,0.62847964,105320.0,105310.0,0.11497109]
[1737270635661,0.62847964,105320.0,105310.0,0.047552]
[1737270638274,0.26767964,105320.0,105310.0,0.047552]
[1737270638464,0.62847964,105320.0,105310.0,0.047552]
[1737270639062,0.486249,105320.0,105310.0,0.047552]
[1737270640270,0.62847964,105320.0,105310.0,0.047552]
[1737270643272,0.50303064,105320.0,105310.0,0.11497109]
[1737270643480,0.50303064,105320.0,105310.0,0.47577109]
[1737270643481,0.14223064,105320.0,105310.0,0.47577109]
[1737270643673,0.14223064,105320.0,105310.0,0.59187109]
[1737270643972,0.14223064,105320.0,105310.0,0.60375916]
[1737270644167,0.14223064,105320.0,105310.0,0.59187109]
[1737270644367,0.14223064,105320.0,105310.0,0.60375905]
[1737270644873,0.14223064,105320.0,105310.0,0.60375881]
[1737270645073,0.04754,105330.0,105310.0,0.60375881]
[1737270645277,0.04754,105330.0,105320.0,0.47576309]
[1737270646675,0.66336664,105340.0,105320.0,0.42821909]
[1737270646867,0.66336664,105340.0,105330.0,0.11495909]
[1737270647068,0.66336664,105340.0,105330.0,0.04754]
[1737270649275,0.69191883,105340.0,105330.0,0.04754]
[1737270650570,0.047539,105330.0,105320.0,0.47576109]
[1737270651079,0.047539,105330.0,105320.0,0.42022972]
[1737270651879,0.18973958,105330.0,105320.0,0.408342]
[1737270652587,0.18973958,105330.0,105320.0,0.47576109]
[1737270652881,0.18973958,105330.0,105320.0,0.48764884]